Cogmind - Beta 14 @@@ ROGUE MODE // 2025.02.28 @ 15:45:59 Player: medi Result: Destroyed by Y-45 Defender with Heavy Assault Rifle Performance ------------- Evolutions (1) 500 Regions Visited (3) 600 Robots Destroyed (83) 415 Value Destroyed (1961) 1961 Prototype IDs (6) 120 Alien Tech Used (0) 0 Bonus (119) 119 TOTAL SCORE: 3715 Bonus ------- High Alert Combat Kills 119 Cogmind --------- Core Integrity 0/400 Matter 290/300 Energy 234/280 System Corruption 0% Temperature Cool (55) Movement Treading (240) Ox1 Location -9/Storage Parts ------- > --- POWER (1) -------- Heavy Ion Engine > --- PROPULSION (2) --- Light Treads Light Treads > --- UTILITY (4) ------ Large Storage Unit Salvage Targeting Computer Light Armor Plating Light Armor Plating > --- WEAPON (2) ------- Pulse Rifle Light EM Pulse Cannon > --- INVENTORY (15) --- Heavy Ion Engine Light Treads Large Storage Unit Structural Scanner Sensor Array Signal Interpreter Transport Network Coupler Salvage Targeting Computer ECM Suite Medium Armor Plating Shield Generator Improved Medium Laser Rocket Launcher Rocket Launcher Peak State ------------ > --- POWER ------------ Improved Ion Engine > --- PROPULSION ------- Light Treads Light Treads > --- UTILITY ---------- Large Storage Unit Sensor Array Salvage Targeting Computer Drone Bay > --- WEAPON ----------- Pulse Rifle Light EM Pulse Cannon > --- INVENTORY -------- Improved Ion Engine Light Treads Light Treads Large Storage Unit Structural Scanner Signal Interpreter Transport Network Coupler Salvage Targeting Computer ECM Suite Light Armor Plating Light Armor Plating Medium Armor Plating Shield Generator Rocket Launcher Rocket Launcher [Rating: 20] Favorites ----------- Power Ion Engine Engine Ion Engine Propulsion Light Treads Treads Light Treads Utility Light Armor Plating Device Structural Scanner Storage Large Storage Unit Processor Salvage Targeting Computer Protection Light Armor Plating Weapon Assault Rifle Energy Gun Pulse Rifle Energy Cannon Light EM Pulse Cannon Ballistic Gun Assault Rifle Launcher Rocket Launcher Special Melee Weapon Datajack Build | -11 -10 -9 -9 ------- Run | Yrd Mat Mat Sto Slots Evolved 2 | . . 2 . Power . | . . . . Propulsion . | . . . . Utility 2 | . . 2 . Weapon . | . . . . Parts Attached 62 | 6 9 26 21 Power 7 | 1 1 3 2 Engine 7 | 1 1 3 2 Core . | . . . . Reactor . | . . . . Propulsion 8 | 2 2 2 2 Treads 8 | 2 2 2 2 Leg . | . . . . Wheel . | . . . . Hover . | . . . . Flight . | . . . . Utility 23 | 1 4 10 8 Device 6 | . . 2 4 Storage 4 | 1 2 1 . Processor 1 | . . 1 . Hackware . | . . . . Protection 12 | . 2 6 4 Artifact . | . . . . Weapon 24 | 2 2 11 9 Energy Gun 6 | . . 4 2 Energy Cannon 4 | . . 1 3 Ballistic Gun 3 | 2 1 . . Ballistic Cannon . | . . . . Launcher 9 | . . 5 4 Special Weapon . | . . . . Impact Weapon . | . . . . Slashing Weapon . | . . . . Piercing Weapon . | . . . . Special Melee Weapon 2 | . 1 1 . Unidentified Prototypes . | . . . . Parts Lost 2 | . . 2 . Power 1 | . . 1 . Propulsion . | . . . . Utility . | . . . . Weapon 1 | . . 1 . Highest Loss Streak 1 | . . 1 . To Critical Strikes . | . . . . Average Slot Usage (%) 99 | . 98 99 100 Engine 11 | . 14 10 11 Treads 23 | . 28 22 22 Device 7 | . . 11 10 Storage 11 | . 14 11 11 Processor 5 | . . 5 11 Protection 13 | . 12 16 11 Energy Gun 5 | . . 8 6 Energy Cannon 4 | . . 6 7 Ballistic Gun 6 | . 21 . . Launcher 5 | . . 6 8 Special Melee Weapon 1 | . 6 . . Peak Build Rating 20 | 6 8 16 20 Average Rating 12 | 5 7 14 16 On Entrance 7 | . 6 8 16 Naked Turns . | . . . . Heaviest Build 42 | 12 22 39 42 Greatest Support 40 | 40 40 40 40 Greatest Overweight (x) 1 | . . . 1 Average Overweight (x) . | . . . . Largest Inventory Capacity 15 | 8 10 15 15 Average Capacity 12 | 7 9 13 15 Most Carried 15 | 4 10 15 15 Average Carried 12 | 2 9 13 14 Final Capacity 15 | 8 10 15 15 Final Carried 15 | 4 10 15 14 Class Distribution -------------------- 96% | Mutant 3% | Scavenger-Mutant Dominant Class ---------------- Mutant | -10/Materials Mutant | -9/Materials Mutant | -9/Storage Resources | -11 -10 -9 -9 ----------- Run | Yrd Mat Mat Sto Matter Collected 1670 | 260 398 529 483 Remotely . | . . . . Salvage Created 2322 | . 566 944 812 Parts 155 | . 31 77 47 Haulers Intercepted 12 | . 2 5 5 Recyclers Shooed . | . . . . Parts Field Recycled . | . . . . Retrieved Matter . | . . . . Parts Self-Destructed . | . . . . Prevented . | . . . . Kills | -11 -10 -9 -9 ------- Run | Yrd Mat Mat Sto Combat Hostiles Destroyed 45 | . 8 19 18 Guns 18 | . 8 6 4 Cannons 6 | . . 2 4 AOE 21 | . . 11 10 Classes Destroyed 12 | . 8 3 1 Worker 6 | . 2 2 2 Builder 11 | . 2 6 3 Hauler 12 | . 2 5 5 Recycler 1 | . 1 . . Mechanic 1 | . . . 1 Operator 1 | . 1 . . Watcher 6 | . 1 4 1 Swarmer 7 | . 3 . 4 Grunt 21 | . 5 9 7 Brawler 1 | . . 1 . Duelist 3 | . . 2 1 Sentry 13 | . . 7 6 Best Kill Streak 7 | . 4 7 5 Combat Bots Only 4 | . 2 4 4 Max Kills in Single Turn 3 | . 1 3 2 Gunslinging . | . . . . Exploded 2 | . . 2 2 Melee . | . . . . Uniques/NPCs Destroyed . | . . . . Combat | -11 -10 -9 -9 -------- Run | Yrd Mat Mat Sto Hostile Shots Fired 208 | . 42 85 81 Missed 57 | . 9 27 21 Damage Taken 2279 | . 358 980 941 Core 501 | . 89 140 272 Absorbed by Shields . | . . . . Redirected to Shielding 24 | . . 24 . Regen/Repaired (Parts) 222 | . . 201 21 Core Remaining (%) 82 | 100 64 . . Volleys Fired 191 | . 64 62 65 Largest 2 | . 2 2 2 Hottest 126 | . 40 126 119 Shots Fired 323 | . 114 106 103 Gun 215 | . 114 56 45 Cannon 58 | . . 22 36 Launcher 50 | . . 28 22 Special . | . . . . Kinetic 114 | . 114 . . Thermal 101 | . . 56 45 Explosive 50 | . . 28 22 Electromagnetic 58 | . . 22 36 Robot Hit Streak 15 | . 15 12 13 Robot Miss Streak 6 | . 6 3 5 Penetration Max . | . . . . Secondary Targets . | . . . . Shots Hit Robots 202 | . 63 73 66 Core Hits 126 | . 24 61 41 Critical Kills 1 | . 1 . . Critical Parts Destroyed . | . . . . Critical Strikes 7 | . 1 4 2 Burn 6 | . . 4 2 Destroy 1 | . 1 . . Melee Attacks 5 | . 4 1 . Impact . | . . . . Slashing . | . . . . Piercing . | . . . . Sneak Attacks 1 | . 1 . . Combat Hostiles . | . . . . Follow-up Attacks . | . . . . Damage Inflicted 5754 | . 813 2414 2527 Guns 2051 | . 813 695 543 Cannons 849 | . . 350 499 Explosions 2845 | . . 1360 1485 Melee . | . . . . Ramming 9 | . . 9 . Kinetic 813 | . 813 . . Thermal 1291 | . . 727 564 Explosive 2792 | . . 1328 1464 Electromagnetic 849 | . . 350 499 Impact . | . . . . Slashing . | . . . . Piercing . | . . . . Highest Corruption . | . . . . Average Corruption . | . . . . Corruption Purged . | . . . . Corruption Blocked . | . . . . Overload Shots . | . . . . Overflow Damage 121 | . . 3 118 Projectiles 24 | . . . 24 Explosions 97 | . . 3 94 Melee . | . . . . Knockbacks . | . . . . Impact . | . . . . Kinetic . | . . . . Secondary . | . . . . Self-Inflicted Damage 334 | . . 172 162 Shots 16 | . . 8 8 Rammed 1 | . . 1 . Targets Rammed 1 | . . 1 . Kicked . | . . . . Crushed . | . . . . Highest Temperature 321 | . 7 264 321 Average Temperature 78 | . 2 72 88 Received Heat Transfer 672 | . 144 297 231 Effects 2 | . . 2 . Interference 2 | . . 2 . Siege Activations . | . . . . Robots Corrupted . | . . . . Combat Hostiles . | . . . . Parts Fried 1 | . . 1 . Impact Corruptions . | . . . . Robots Melted . | . . . . Combat Hostiles . | . . . . Parts Melted 5 | . . 3 2 Heat Transferred 3245 | . . 1863 1382 Parts Sabotaged . | . . . . Parts Stolen . | . . . . Parts Stripped . | . . . . Power Chain Reactions 2 | . . 1 1 Alert | -11 -10 -9 -9 ------- Run | Yrd Mat Mat Sto Peak Influence 684 | . 298 456 684 Initial 126 | . . . 126 Average 260 | . 132 237 450 Maximum Alert Level 2 | . 1 2 2 Low Security (%) 38 | 100 80 26 7 Level 1 40 | . 19 66 27 Level 2 20 | . . 7 65 Level 3 . | . . . . Level 4 . | . . . . Level 5 . | . . . . High Security . | . . . . Max Security . | . . . . Squads Dispatched 5 | . 2 1 2 Investigation 1 | . . . 1 Extermination . | . . . . Reinforcement 4 | . 2 1 1 Assault . | . . . . Garrison . | . . . . Intercept . | . . . . Searches Triggered . | . . . . Construction Impeded 1 | . . 1 . Haulers Reinforced . | . . . . Active Scanning Responses . | . . . . Cargo Convoy Interrupts . | . . . . Stealth | -11 -10 -9 -9 --------- Run | Yrd Mat Mat Sto Distress Signals 10 | . . 7 3 Communications Jammed . | . . . . Distress Signals . | . . . . Times Spotted 80 | . 24 30 26 Peak Tracking Total 5 | . 4 5 5 Tactical Retreats 4 | . 2 1 1 Traps | -11 -10 -9 -9 ------- Run | Yrd Mat Mat Sto Traps Triggered 1 | . . . 1 Indirectly . | . . . . Trap Hack Attempts . | . . . . Triggered . | . . . . Disarmed . | . . . . Reprogrammed . | . . . . Reused . | . . . . Traps Extracted . | . . . . Installed . | . . . . Triggered . | . . . . Machines | -11 -10 -9 -9 ---------- Run | Yrd Mat Mat Sto Machines Disabled 16 | . 1 6 9 Max in Single Turn 2 | . 1 2 2 Machines Repaired . | . . . . Machines Dismantled . | . . . . Machines Sabotaged . | . . . . Overloaded Fab Kills . | . . . . Hacking | -11 -10 -9 -9 --------- Run | Yrd Mat Mat Sto Machines Accessed 23 | . 5 9 9 Terminals 19 | . 5 6 8 Fabricators . | . . . . Repair Stations 2 | . . 1 1 Recycling Units . | . . . . Scanalyzers 2 | . . 2 . Garrison Access . | . . . . Total Hacks 71 | . 19 32 20 Successful 39 | . 10 20 9 Failed 32 | . 9 12 11 Catastrophic 10 | . 3 3 4 Database Lockouts . | . . . . Manual 18 | . 4 7 7 Terminals 49 | . 19 14 16 Fabricators . | . . . . Repair Stations 12 | . . 8 4 Recycling Units . | . . . . Scanalyzers 10 | . . 10 . Garrison Access . | . . . . Terminal Hacks 21 | . 10 6 5 Robot Analysis 1 | . 1 . . Prototype ID Bank 3 | . 2 1 . Open Door 2 | . . . 2 Emergency Access Points 1 | . . 1 . Alert Level 4 | . 2 1 1 Unreport Threat 1 | . . 1 . Locate Traps 5 | . 2 2 1 Dispatch Records 1 | . 1 . . Investigation Status 1 | . 1 . . Extermination Status 1 | . . . 1 Reinforcement Status 1 | . 1 . . Fabricator Hacks . | . . . . Repair Station Hacks 10 | . . 6 4 Scan Component 5 | . . 3 2 Repair 5 | . . 3 2 Recycling Unit Hacks . | . . . . Scanalyzer 8 | . . 8 . Insert Component 4 | . . 4 . Analyze 4 | . . 4 . Garrison Access Hacks . | . . . . Unauthorized Hacks . | . . . . Terminals . | . . . . Fabricators . | . . . . Repair Stations . | . . . . Recycling Units . | . . . . Scanalyzers . | . . . . Garrison Access . | . . . . Data Cores Recovered . | . . . . Used . | . . . . Hacking Detections 23 | . 5 9 9 Full Trace Events . | . . . . Feedback Events . | . . . . Feedback Blocked . | . . . . Robot Schematics Acquired . | . . . . Robots Built . | . . . . Authchips . | . . . . Time . | . . . . Total Robot Build Rating . | . . . . Part Schematics Acquired 3 | . . 3 . Parts Built . | . . . . Authchips . | . . . . Time . | . . . . Total Part Build Rating . | . . . . Parts Repaired 5 | . . 3 2 Time 152 | . . 90 62 Parts Recycled . | . . . . Recycled Matter . | . . . . Retrieved Matter . | . . . . Retrieved Components . | . . . . Parts Scanalyzed 3 | . . 3 . Part Schematics Acquired 3 | . . 3 . Parts Damaged . | . . . . Bothacking | -11 -10 -9 -9 ------------ Run | Yrd Mat Mat Sto Used RIF Installer . | . . . . Robots Hacked 2 | . 1 1 . Non-combat 1 | . 1 . . Combat 1 | . . 1 . Robot Hacks Applied 2 | . 1 1 . parse_system 2 | . 1 1 . Relay Couplers Released . | . . . . Fabnet Peak Effective % . | . . . . Robots Rewired . | . . . . Allies Hacked . | . . . . Hacks Repelled . | . . . . Allies | -11 -10 -9 -9 -------- Run | Yrd Mat Mat Sto Total Allies . | . . . . Largest Group . | . . . . Highest-Rated Group . | . . . . Highest-Rated Ally . | . . . . Total Orders 2 | . . . 2 FOLLOW 1 | . . . 1 EXPLORE 1 | . . . 1 Ally Attacks . | . . . . Total Damage . | . . . . Kills . | . . . . Allies Corrupted . | . . . . Allies Melted . | . . . . Intel | -11 -10 -9 -9 ------- Run | Yrd Mat Mat Sto Robot Analysis Total 1 | . 1 . . Derelict Logs Recovered . | . . . . Drone Launches 2 | . . . 2 Drone Recoveries . | . . . . Exploration | -11 -10 -9 -9 ------------- Run | Yrd Mat Mat Sto Turns Passed 4397 | 90 1256 1855 1196 Spaces Moved 2123 | 50 634 929 510 Core 2 | 2 . . . Treads 2121 | 48 634 929 510 Legs . | . . . . Wheels . | . . . . Hover . | . . . . Flight . | . . . . Fastest Speed 50 | 50 160 160 160 Average Speed 165 | 155 160 160 181 Slowest Speed 240 | 160 160 160 240 Overloaded Moves . | . . . . Propulsion Burnouts . | . . . . Robots Hopped . | . . . . Cave-ins Triggered . | . . . . Exploration Rate (%) 54 | 4 70 73 70 Regions Visited 3 Branch Regions 1 Pre-discovered Areas . | . . . . Known Exits Taken . | . . . . Unknown Exits Taken 3 | 1 1 1 . Scrap Searched . | . . . . Spaces Dug . | . . . . Terrain Destroyed 396 | . . 207 189 Melee . | . . . . Projectile . | . . . . AOE 396 | . . 207 189 Terrain Rammed . | . . . . Walls Destroyed . | . . . . Machines Disabled . | . . . . Actions | -11 -10 -9 -9 --------- Run | Yrd Mat Mat Sto Total 2688 | 60 765 1190 673 Wait 225 | . 27 137 61 Move 2120 | 49 633 928 510 Hop . | . . . . Pick Up 46 | 5 14 19 8 Fast Attach 9 | 5 1 3 . Attach 9 | 1 2 6 . Detach 3 | . 1 2 . Swap 44 | . 6 17 21 Drop 35 | . 13 14 8 Fire 191 | . 64 62 65 Melee 5 | . 4 1 . Ram . | . . . . Kick . | . . . . Crush 1 | . . 1 . Escape Stasis . | . . . . Rewire . | . . . . Trap . | . . . . Miscellaneous . | . . . . Route ------- -11/Scrapyard -10/Materials (discovered 3 exits: *Mat x2 / [*Min]) -9/Materials (discovered 3 exits: [*Mat] / [*Min] / *Sto) -9/Storage History --------- Turn | Location | Event 33 | -11/Scrapyard | Discovered new exit (range 16) 91 | -11/Scrapyard | Entered Materials 315 | -10/Materials | Build established: Mutant 722 | -10/Materials | Discovered new exit (range 4) 1199 | -10/Materials | Discovered new exit (range 9) 1332 | -10/Materials | Discovered new exit (range 7) 1347 | -10/Materials | Entered another Materials area 1347 | -9/Materials | Evolved 2 slots: Utility x2 1750 | -9/Materials | Discovered new exit (range 7) 2394 | -9/Materials | Discovered new exit (range 4) 2812 | -9/Materials | Repaired Lgt. Armor Plating 2852 | -9/Materials | Repaired Pulse Rifle 2882 | -9/Materials | Repaired Lgt. Treads 3157 | -9/Materials | Discovered new exit (range 5) 3202 | -9/Materials | Entered Storage 3710 | -9/Storage | Repaired Structural Scanner 3747 | -9/Storage | Repaired Corrupted Sensor Array 3803 | -9/Storage | Core integrity fell below 50% 4082 | -9/Storage | Core integrity fell below 20% 4398 | -9/Storage | Destroyed by Y-45 Defender with Heavy Assault Rifle Last Messages --------------- 04243_ Acquired 14 matter. 04243_ U-05 Engineer builds a Wall. 04247_ U-05 Engineer lays Concrete. 04252_ Connecting with Terminal... 04253_ U-05 Engineer builds a Wall. 04260_ Connecting with Terminal... 04272_ A-02 Transporter destroyed. 04276_ Dropped Imp. Ion Engine. 04277_ Acquired Hvy. Ion Engine. 04280_ Dropped Imp. Ion Engine. 04281_ Acquired 10 matter. 04282_ K-01 Serf collects debris. 04286_ Dropped Lgt. Treads. 04288_ K-01 Serf collects debris. 04289_ Acquired Prototype Energy Gun. 04292_ K-01 Serf collects debris. 04293_ U-05 Engineer lays Concrete. 04296_ K-01 Serf collects debris. 04297_ U-05 Engineer lays Concrete. 04393_ Dropped Drone Bay. Map ----- +----------------------------------------------------+ | ??# !%% * """ # """ #?????????????????? | | ??# =*[ # "???#?????????????????? | | ### #+## ###### "?????????????????????? | | ## # # #????# ??????????????????????? | | ?# # ##############??????????????????? | | ?# + #??????????????????? | | ?# ########## #??????????????????? | | ?# ?????????# #??????????????????? | | ?######?????????# #??????????????????? | | ????????????????# #??????????????????? | | ????????????????# #??????????????????? | | ????????????????# #??????????????????? | | ????????????????# #??????????????????? | | ????????????????# #??????????????????? | | ????????????????# #??????????????????? | | ????????????????# #??????????????????? | | ????????????????# #??????????????????? | | ????????????????# #??????????????????? | | ??????+####+#####+######??????????????????? | | ?? #???????????????????? | | ?? #???????????????????? | | ?????############/## #???????????????????? | | ????????# ## #???????????????????? | | ????????# """"" ## ##??????????????????? | | ?????????? """"" # #######+##T#???????? | | ???????????""""" + YY @ "??????? | | ??????????? # "??????? | | ??????????? = # ############"??????? | | ?????????? ######??????????????????? | | ?????????? ????????????????????????? | | ??????????? ######????????????????????????? | | ??????????????????????????????????????????? | | | | | | | | | | | | | | | | | | | | | | | | | | | | | | | | | | | | | +----------------------------------------------------+ Best States ------------- Heat Dissipation 28 Energy Generation 14 Energy Capacity 280 Matter Stores 300 Matter Capacity 300 Sight Range 16 Robot Scan Range 14 Terrain Scan Density 10 ECM Strength 1 Armor Coverage 300 Utility Shielding 66 Evasion (%) 40 Recoil Reduction 2 Salvage Targeting 1 Item Schematics ----------------- Rocket Launcher | -9/Materials | Scanalyzed Med. Armor Plating | -9/Materials | Scanalyzed Salvage Targeting Computer | -9/Materials | Scanalyzed Robot Schematics ------------------ None Fabricated ------------ Nothing Alien Tech Used ----------------- None Achievements -------------- None Challenges ------------ None Game ------ Seed EnhancedGodInitializer Manual? 0 Play Time 01:17:21 Cumulative 12.5 hours Start 2025.02.27 @ 14:12:38 End 2025.02.28 @ 15:45:59 Sessions 4 Manual Loads 0 Difficulty Rogue Special Mode None Game No. 7 Rogue 7 Adventurer 0 Explorer 0 Win Type - Total 0 Types 0/0/0/0/0/0/0/0/0 Lore% 8 Gallery% 12 Achievement% 11 Wizard Run 0 Options --------- Layout 1 ASCII 0 Keyboard 1 Movement Numpad Keybinds 0 Fullscreen 1 Font 24/Smallcaps Map View 50x35 Zoom Use 0% Tactical HUD 1 Map Filters NONE Filters NONE Steam 0 RUN: b1a1be9f-d1ff-425e-8c72-716b6ebd951d